bitfinex/quotes_SOLUSD_20251009
["timestamp","ask_amount","ask_price","bid_price","bid_amount"]
[1760037336937,0.2763,218.05,218.0,0.69]
[1760037337110,0.2763,218.05,218.01,0.69]
[1760037337312,0.24,218.09,218.03,10.87647521]
[1760037337637,32.42,218.08,218.03,0.69]
[1760037337816,53.22,218.09,218.04,0.69]
[1760037338017,32.42,218.09,218.04,0.69]
[1760037338245,22.92016045,218.15,218.05,0.69]
[1760037338246,4.58442213,218.13,218.05,0.69]
[1760037338413,32.42,218.12,218.06,10.87647521]
[1760037338613,32.66,218.12,218.06,10.87647521]
[1760037338814,4.58484251,218.11,218.04,0.69]
[1760037340037,20.8,218.09,218.01,10.87647521]
[1760037340227,20.8,218.09,218.0,10.87647521]
[1760037340428,0.24,218.08,218.0,10.87647521]
[1760037340634,32.44,218.07,218.0,10.87647521]
[1760037340944,0.24,218.08,217.95,20.8]
[1760037340945,32.44,218.08,218.02,10.87647521]
[1760037341116,32.44,218.08,218.03,0.69]
[1760037341443,25.38530867,218.09,218.04,0.69]
[1760037341610,37.02530867,218.09,218.04,0.69]
[1760037341815,37.02530867,218.09,218.02,11.56647521]
[1760037342109,37.02530867,218.09,218.02,16.15300524]
[1760037342314,48.72846608,218.09,218.02,10.87647521]
[1760037343742,48.72846608,218.09,218.01,10.87647521]
[1760037343917,0.24,218.08,218.0,0.69]
[1760037344117,16.04989223,218.07,218.0,0.69]
[1760037344436,4.58568349,218.07,218.0,5.2771421]
[1760037344625,4.58568349,218.07,218.01,10.87647521]
[1760037344827,4.58568349,218.07,218.01,11.56647521]
[1760037345227,32.44,218.08,218.02,0.72]
[1760037345434,37.02559062,218.08,218.02,0.72]
[1760037346046,37.02559062,218.08,218.03,10.87647521]
[1760037346244,37.02559062,218.08,218.03,11.59647521]
[1760037346433,37.04559062,218.08,218.04,0.72]
[1760037346630,4.58559062,218.08,218.04,0.72]
[1760037346945,4.58559062,218.08,218.03,10.87647521]
[1760037347243,37.02527183,218.09,218.04,0.72]
[1760037347544,37.02527183,218.09,218.05,0.72]
[1760037347928,0.24,218.16,218.07,10.87647521]
[1760037348129,3.29066833,218.18,218.09,10.87647521]
[1760037348322,53.24,218.17,218.09,11.59647521]
[1760037348516,0.24,218.16,218.03,10.87647521]
[1760037348747,32.68,218.15,218.04,0.72]
[1760037349131,0.24,218.14,218.05,10.87647521]
[1760037349338,0.24,218.13,218.05,10.87647521]
[1760037349540,4.58463231,218.12,218.05,10.87647521]
[1760037349947,32.7,218.11,218.0,0.72]
[1760037350257,32.7,218.11,218.01,10.87647521]
[1760037350431,32.7,218.11,218.03,10.87647521]
[1760037350954,0.24,218.11,218.03,10.87647521]
[1760037351249,32.48,218.1,218.03,10.87647521]
[1760037352338,4.58526296,218.09,218.03,10.87647521]
[1760037352928,0.24,218.08,217.98,11.59647521]
[1760037353427,0.24,218.08,217.98,10.87647521]
[1760037353631,0.24,218.08,217.99,0.72]
[1760037354247,3.29614165,218.08,217.99,0.72]
[1760037354455,4.58568349,218.07,218.0,15.46363117]
[1760037354746,4.58568349,218.07,218.0,16.18363117]
[1760037355540,4.58568349,218.07,218.0,11.59647521]
[1760037356142,4.58568349,218.07,218.0,10.87647521]
[1760037356353,4.58568349,218.07,218.01,0.72]
[1760037356531,37.04568349,218.07,218.01,0.72]
[1760037356732,32.46,218.07,218.02,10.87647521]
[1760037356950,32.46,218.07,218.03,0.72]
[1760037357129,36.84776946,218.1,218.03,0.72]
[1760037357330,3.06499909,218.09,218.03,0.72]
[1760037357537,32.46,218.08,218.03,0.72]
[1760037357736,32.46,218.08,218.02,10.87647521]
[1760037357930,32.46,218.08,218.03,0.72]
[1760037358131,32.44,218.09,218.02,10.87647521]
[1760037358343,3.0689646,218.08,218.04,0.72]
[1760037358526,3.0689646,218.08,218.06,10.87647521]
[1760037358725,3.0689646,218.12,218.08,10.87647521]
[1760037358932,4.58421197,218.14,218.09,0.72]
[1760037359241,3.0689646,218.13,218.06,10.87647521]
[1760037359442,3.0689646,218.12,218.08,10.87647521]
[1760037359747,36.24925809,218.16,218.05,20.8]
[1760037359748,3.0689646,218.15,218.1,10.87647521]
[1760037359949,3.0689646,218.14,218.11,0.72]
[1760037360143,3.0689646,218.14,218.12,0.72]
[1760037360468,3.0689646,218.16,218.13,0.72]
[1760037360664,7.65237642,218.18,218.1,10.87647521]
[1760037360835,4.58341182,218.18,218.11,0.72]
[1760037361142,3.07184403,218.17,218.11,0.72]
[1760037361349,3.07184403,218.16,218.09,10.87647521]
[1760037361540,3.07184403,218.15,218.08,0.72]
[1760037361750,60.17164907,218.14,218.02,0.72]
[1760037362062,24.63980504,218.1,218.02,0.72]
[1760037362276,35.57184403,218.09,218.02,0.72]
[1760037362434,3.07184403,218.08,217.99,10.87647521]
[1760037362763,3.07184403,218.08,217.93,11.47119733]
[1760037362764,23.2015413,218.07,217.95,0.65]
[1760037363059,6.91164907,218.06,217.95,0.65]
[1760037363238,3.07184403,218.05,217.95,0.65]
[1760037363578,35.59184403,218.04,217.96,10.87647521]
[1760037363746,3.07184403,218.03,217.96,11.52647521]
[1760037363948,3.07184403,218.02,217.96,11.52647521]
[1760037364149,32.52,218.03,217.96,11.52647521]
[1760037364450,3.07184403,218.02,217.96,11.52647521]
[1760037364652,4.58694555,218.01,217.96,11.52647521]
[1760037365059,3.07184403,218.02,217.98,10.87647521]
[1760037365240,7.65798228,218.05,217.99,0.65]
[1760037365445,3.07184403,218.04,217.99,0.65]
[1760037365639,3.07184403,218.04,217.98,10.87647521]
[1760037365846,3.07184403,218.04,217.97,10.87647521]
[1760037366049,3.07184403,218.03,217.96,0.65]
[1760037366250,3.07184403,218.02,217.95,10.87647521]
[1760037366455,0.24,218.04,217.95,10.87647521]
[1760037366456,3.07184403,218.03,217.95,11.52647521]
[1760037366651,7.89857919,218.02,217.92,0.75]
[1760037366832,7.89857919,218.02,217.93,10.87647521]
[1760037366833,32.52,218.01,217.93,10.87647521]
[1760037367035,3.07184403,218.0,217.93,10.87647521]
[1760037367236,3.07184403,218.0,217.94,0.65]
[1760037367464,32.52,218.01,217.94,0.65]
[1760037367641,3.07184403,218.0,217.94,0.65]
[1760037368166,4.58715596,218.0,217.94,5.23834997]
[1760037368663,4.58715596,218.0,217.94,0.65]
[1760037368836,4.58715596,218.0,217.93,91.17647521]
[1760037369042,3.06969802,217.99,217.93,80.3]
[1760037369749,3.06969802,218.0,217.94,11.52647521]
[1760037369955,3.06969802,218.01,217.95,0.65]
[1760037370159,7.65672435,218.01,217.95,0.65]
[1760037371157,7.65672435,218.01,217.96,4.58799779]
[1760037371358,7.93302435,218.01,217.97,0.65]
[1760037372053,3.34599802,218.01,217.97,0.65]
[1760037372256,7.93295373,218.01,217.97,0.65]
[1760037372663,3.34599802,218.01,217.97,0.65]
[1760037372865,7.93295637,218.01,217.97,0.65]
[1760037373865,7.93295637,218.01,217.95,4.58819918]
[1760037374061,7.93295637,218.01,217.96,0.65]
[1760037374370,3.34599802,218.01,217.97,0.65]
[1760037374873,0.2763,218.01,217.98,11.52647521]
[1760037375165,0.2763,218.01,218.0,10.87647521]
[1760037375543,0.2763,218.01,218.0,11.52647521]
[1760037377278,0.2763,218.01,218.0,10.87647521]
[1760037377974,0.2763,218.01,217.97,80.95]
[1760037378303,4.86326786,218.01,217.97,80.95]
[1760037378572,4.86326786,218.01,217.97,80.3]
[1760037378876,0.2763,218.01,217.97,80.3]
[1760037379055,0.2763,218.01,217.98,0.65]
[1760037379382,0.2763,218.01,217.97,80.3]
[1760037379541,4.86332083,218.01,217.97,80.3]
[1760037379741,4.86332083,218.01,217.97,80.95]
[1760037380240,4.86332083,218.01,217.97,80.3]
[1760037380453,4.86332083,218.01,217.98,0.65]
[1760037381450,4.86332083,218.01,217.97,80.3]
[1760037381747,0.24,218.0,217.97,80.3]
[1760037382096,4.86332083,218.01,217.92,0.1]
[1760037382097,0.24,217.99,217.92,0.1]
[1760037382797,4.58757684,217.98,217.92,0.1]
[1760037382973,7.65630147,217.98,217.92,0.1]
[1760037383170,4.58757684,217.98,217.92,0.1]
[1760037384798,16.05651894,217.98,217.92,0.1]
[1760037384985,35.58853769,217.97,217.92,0.1]
[1760037385292,32.52,217.97,217.92,0.1]
[1760037385495,0.24,217.96,217.92,0.1]
[1760037385697,0.24,217.95,217.92,0.1]
[1760037387103,4.58841883,217.94,217.92,0.1]
[1760037387611,4.58819988,217.96,217.92,0.75]
[1760037389706,16.29819437,217.96,217.92,0.1]
[1760037389910,0.24,217.95,217.92,0.1]
[1760037390103,16.05819437,217.96,217.92,0.1]
[1760037390412,0.24,217.94,217.92,0.1]
[1760037390704,32.5,217.93,217.92,0.1]
[1760037391609,37.08862937,217.93,217.92,0.1]
[1760037392804,37.32862937,217.93,217.92,0.1]
[1760037393110,37.08862937,217.93,217.92,0.1]
[1760037393614,37.36492937,217.93,217.92,0.1]
[1760037394602,37.60492937,217.93,217.92,0.1]
[1760037395096,40.67137025,217.93,217.91,1e-08]
[1760037395311,40.67137025,217.93,217.89,1e-08]
[1760037395312,20.8,217.9,217.89,1e-08]
[1760037395622,56.36644088,217.9,217.89,1e-08]
[1760037395913,56.60644088,217.9,217.89,1e-08]
[1760037396902,61.195702,217.9,217.89,1e-08]
[1760037398795,72.66885482,217.9,217.84,0.1]
[1760037398999,3.06644088,217.89,217.84,0.1]
[1760037399409,0.24,217.88,217.84,0.1]
[1760037399619,32.72,217.87,217.84,0.1]
[1760037400407,32.48,217.87,217.84,0.1]
[1760037401219,4.59010373,217.86,217.84,0.1]
[1760037401803,4.83010373,217.86,217.84,0.1]
[1760037402521,4.59010373,217.86,217.84,0.1]
[1760037407193,4.83010373,217.86,217.84,0.1]
[1760037407803,4.59010373,217.86,217.84,0.1]
[1760037410917,57.83010373,217.86,217.85,0.77]
[1760037411217,37.03010373,217.86,217.85,0.77]
[1760037411415,25.39010373,217.86,217.85,0.1]
[1760037411624,57.83010373,217.86,217.85,0.77]
[1760037412334,57.83010373,217.86,217.85,0.1]
[1760037414515,37.03010373,217.86,217.85,0.1]
[1760037415025,37.03010373,217.86,217.85,0.77]
[1760037415417,37.30640373,217.86,217.85,0.1]
[1760037416802,58.08640373,217.86,217.85,0.77]
[1760037417024,25.66640373,217.86,217.85,0.77]
[1760037417207,58.08640373,217.86,217.85,0.77]
[1760037418326,0.2763,217.86,217.85,0.77]
[1760037418528,4.58908015,217.91,217.85,5.3602867]
[1760037418710,32.42,217.9,217.86,0.67]
[1760037420931,37.00931001,217.9,217.86,0.67]
[1760037421437,32.42,217.9,217.86,0.67]
[1760037422431,4.58947175,217.89,217.86,0.67]
[1760037422631,32.42,217.9,217.86,0.67]
[1760037423017,37.00941482,217.9,217.86,0.67]
[1760037423362,32.42,217.9,217.86,0.67]
[1760037423839,32.42,217.9,217.86,5.26007729]
[1760037424049,32.42,217.9,217.87,0.68]
[1760037424248,0.52,217.99,217.88,10.87647521]
[1760037424452,32.4,217.98,217.9,15.46573633]
[1760037424749,4.58715596,218.0,217.92,10.87647521]
[1760037424947,32.44,217.99,217.94,10.87647521]
[1760037425147,32.44,217.99,217.95,0.68]
[1760037425636,32.44,218.01,217.96,10.87647521]
[1760037425848,32.44,218.01,217.97,0.68]
[1760037426929,4.58587671,218.07,217.98,10.87647521]
[1760037427133,32.44,218.06,218.0,10.87647521]
[1760037427339,32.44,218.06,218.01,0.68]
[1760037428952,37.02600005,218.06,218.01,0.68]
[1760037429458,32.44,218.09,218.02,10.87647521]
[1760037429749,32.44,218.09,218.04,10.87647521]
[1760037429951,32.44,218.09,218.05,0.68]
[1760037430353,32.44,218.09,218.06,0.68]
[1760037430653,32.44,218.09,218.07,0.68]
[1760037430867,37.02537659,218.09,218.05,0.68]
[1760037431032,37.02537659,218.09,218.06,0.68]
[1760037432950,37.02537659,218.09,218.04,11.55647521]
[1760037433140,37.02537659,218.09,218.05,0.68]
[1760037435941,49.008534,218.09,218.02,0.68]
[1760037437057,20.8,218.06,217.95,0.68]
[1760037437266,35.45189048,218.05,217.94,10.87647521]
[1760037437469,0.52,218.04,217.94,11.55647521]
[1760037437760,0.52,218.03,217.94,11.55647521]
[1760037437972,32.4,218.02,217.94,11.55647521]
[1760037438133,4.58694555,218.01,217.94,11.55647521]
[1760037438332,4.58694555,218.01,217.92,80.3]
[1760037438333,0.52,218.0,217.92,80.3]
[1760037438550,20.8,217.98,217.89,10.87647521]
[1760037438761,32.92,217.97,217.89,10.87647521]
[1760037438930,0.52,217.96,217.88,0.68]
[1760037440051,4.5871995,218.0,217.9,4.58926112]
[1760037440247,4.5871995,218.0,217.92,10.87647521]
[1760037440565,4.5871995,218.0,217.93,0.68]
[1760037442467,4.5871995,218.0,217.93,5.26860977]
[1760037442765,37.00696587,218.01,217.94,0.68]
[1760037443772,37.00696587,218.01,217.94,5.26834517]
[1760037443941,4.58696587,218.01,217.95,0.68]
[1760037445569,4.58696587,218.01,217.95,80.98]
[1760037445767,4.58696587,218.01,217.96,0.68]
[1760037445972,4.58696587,218.01,217.97,0.68]
[1760037448164,4.58696587,218.01,217.95,80.98]
[1760037448583,4.58696587,218.01,217.95,80.3]
[1760037448872,4.58696587,218.01,217.96,0.68]
[1760037449773,4.58673516,218.02,217.97,0.68]
[1760037449968,27.38112314,218.09,217.97,0.68]
[1760037449969,4.58637482,218.04,217.98,0.68]
[1760037450271,36.96547322,218.08,217.99,10.87647521]
[1760037450583,57.76547322,218.08,218.0,0.68]
[1760037450885,36.96547322,218.08,218.0,0.68]
[1760037451058,57.76547322,218.08,218.0,0.68]
[1760037451258,69.22915627,218.08,218.0,0.68]
[1760037451774,0.52,218.07,217.99,80.3]
[1760037451971,0.52,218.06,217.99,80.3]
[1760037452280,0.52,218.05,217.99,80.3]
[1760037452476,32.4,218.04,217.99,80.3]
[1760037452680,32.4,218.04,218.0,0.69]
[1760037453373,36.98632551,218.04,218.0,0.69]
[1760037453582,36.98632551,218.04,217.99,80.3]
[1760037453783,48.9721116,218.04,217.99,80.3]
[1760037454649,16.5721116,218.04,217.99,80.3]
[1760037455483,16.5721116,218.04,217.99,80.99]
[1760037455687,16.0521116,218.04,217.99,80.99]
[1760037456681,11.46578609,218.04,217.99,80.99]
[1760037456888,14.52401531,218.04,217.99,80.99]
[1760037457775,3.05822922,218.04,217.99,80.99]
[1760037458081,3.05822922,218.04,218.0,0.69]
[1760037458788,7.64469905,218.04,218.01,0.69]
[1760037458982,7.64469905,218.04,218.02,0.69]
[1760037459194,36.94600803,218.06,218.02,0.69]
[1760037459381,3.05822922,218.05,218.02,0.69]
[1760037460598,4.58631443,218.04,218.02,0.69]
[1760037461392,4.58631443,218.04,217.99,80.3]
[1760037461597,4.58631443,218.04,218.0,0.69]
[1760037461889,4.58631443,218.04,218.01,0.69]
[1760037464177,7.64454365,218.04,218.01,0.69]
[1760037464394,4.58631443,218.04,218.01,0.69]
[1760037464698,7.6563511,218.04,218.01,0.69]
[1760037464892,4.58631443,218.04,218.01,0.69]
[1760037465093,0.52,218.03,217.99,80.3]
[1760037465299,3.59003667,218.03,217.99,80.3]
[1760037465595,3.07003667,218.03,218.0,0.67]
[1760037465794,4.58631443,218.04,218.01,0.67]
[1760037465999,7.6563511,218.04,218.01,0.67]
[1760037466193,4.58631443,218.04,218.01,0.67]
[1760037466502,4.58631443,218.04,217.99,80.97]
[1760037466681,7.6563511,218.04,218.0,0.67]
[1760037466883,4.5861041,218.05,218.0,0.67]
[1760037467191,3.07003667,218.04,218.0,0.67]
[1760037467368,3.07003667,218.03,218.01,0.67]
[1760037467569,3.07003667,218.04,218.01,0.67]
[1760037467873,3.07003667,218.03,218.01,0.67]
[1760037468069,3.07003667,218.04,218.01,0.67]
[1760037468288,3.07003667,218.03,218.01,0.67]
[1760037468492,3.07003667,218.04,218.01,0.67]
[1760037468808,4.58736639,217.99,217.92,0.67]
[1760037469119,3.59003667,217.98,217.91,10.87647521]
[1760037469415,3.07003667,217.97,217.91,0.67]
[1760037469779,3.07003667,217.97,217.92,10.87647521]
[1760037469975,0.52,218.01,217.94,10.87647521]
[1760037469976,3.07003667,217.98,217.94,10.87647521]
[1760037470176,3.07003667,218.03,217.96,10.87647521]
[1760037470480,3.07003667,218.02,217.98,10.87647521]
[1760037470679,4.58652646,218.03,217.99,33.05]
[1760037470908,4.58652646,218.03,218.0,0.67]
[1760037471208,7.65656313,218.03,217.99,32.38]
[1760037471372,4.58652646,218.03,218.0,0.67]
[1760037471900,7.65656313,218.03,218.0,0.67]
[1760037472086,7.65614848,218.05,218.0,0.67]
[1760037472314,7.65614848,218.05,218.01,0.67]
[1760037472505,0.2772,218.03,218.0,10.87647521]
[1760037473002,0.2772,218.03,218.01,0.67]
[1760037473329,0.2772,218.03,217.98,0.67]
[1760037473527,3.07003667,218.02,217.99,0.67]
[1760037473702,0.2772,218.03,218.0,0.67]
[1760037473903,0.2772,218.03,217.98,32.38]
[1760037473904,3.34723667,218.03,217.98,32.38]
[1760037474096,0.2772,218.03,218.01,0.67]
[1760037474297,0.2772,218.03,218.02,0.67]
[1760037474508,0.2772,218.03,218.0,0.67]
[1760037474725,3.34723667,218.03,218.01,0.67]
[1760037475220,0.2772,218.03,218.02,0.67]
[1760037475430,0.2772,218.03,218.02,43.92647521]
[1760037476813,0.2772,218.03,218.02,48.51321037]
[1760037477018,0.2772,218.03,218.02,16.13321037]
[1760037477209,0.2772,218.03,218.02,48.53321037]
[1760037477406,0.2772,218.03,218.02,16.13321037]
[1760037477712,0.2772,218.03,218.02,48.51321037]
[1760037480315,0.2772,218.03,218.02,48.49321037]
[1760037481223,4.58484251,218.11,218.05,10.87647521]
[1760037481398,4.58484251,218.11,218.06,32.36]
[1760037481733,3.27003667,218.13,218.07,11.54647521]
[1760037482015,0.2,218.13,218.09,10.87647521]
[1760037482206,0.2,218.13,218.1,33.03]
[1760037482404,0.2,218.13,218.1,113.0528]
[1760037482602,0.2,218.13,218.11,0.67]
[1760037482809,0.2,218.13,218.12,11.55647521]
[1760037483709,0.2,218.13,218.12,43.93647521]
[1760037484094,0.2,218.13,218.12,48.52110752]
[1760037485317,0.2,218.13,218.12,128.54390752]
[1760037487814,0.72,218.26,218.18,10.87647521]
[1760037487815,0.2,218.26,218.18,10.87647521]
[1760037488004,0.2,218.26,218.2,10.87647521]
[1760037488209,0.2,218.26,218.22,4.58253139]
[1760037488523,0.2,218.26,218.23,32.38]
[1760037488703,0.2,218.26,218.23,33.06]
[1760037489298,0.2,218.26,218.24,11.55647521]
[1760037489520,0.2,218.26,218.25,43.25647521]
[1760037489707,0.2,218.26,218.25,43.93647521]
[1760037490102,0.2,218.26,218.25,123.9592752]
[1760037490301,0.2,218.26,218.25,128.54117668]
[1760037491009,0.2,218.26,218.25,129.04117668]
[1760037493512,0.2,218.26,218.25,96.66117668]
[1760037493717,0.2,218.26,218.25,128.54117668]
[1760037498326,0.2,218.26,218.25,123.9592752]
[1760037499033,0.2,218.31,218.27,79.62279999]
[1760037499333,0.2,218.31,218.28,43.21647521]
[1760037499827,0.2,218.31,218.29,0.68]
[1760037500032,0.2,218.31,218.3,33.0]
[1760037500826,0.2,218.31,218.3,32.32]
[1760037502112,0.2,218.31,218.29,4.58093614]
[1760037502323,0.2,218.31,218.3,47.75732724]
[1760037502803,0.2,218.31,218.3,127.38012723]
[1760037504239,0.2,218.31,218.3,111.92279999]
[1760037504408,0.72,218.31,218.3,79.62279999]
[1760037504611,5.3006422,218.31,218.3,79.62279999]
[1760037504820,5.3006422,218.31,218.22,10.87647521]
[1760037505118,0.52,218.3,218.23,32.3]
[1760037505315,0.52,218.3,218.24,32.32]
[1760037505524,0.52,218.29,218.21,5.26274139]
[1760037505724,0.52,218.29,218.22,32.32]
[1760037506130,5.10120302,218.29,218.23,4.5823214]
[1760037506433,5.10120302,218.29,218.24,32.3]
[1760037506636,0.52,218.28,218.24,32.3]
[1760037507528,0.52,218.27,218.24,32.3]
[1760037508117,5.10120302,218.29,218.24,32.3]
[1760037508318,4.58120302,218.29,218.24,32.3]
[1760037508619,4.58086929,218.3,218.25,0.68]
[1760037509532,5.10086929,218.3,218.25,0.68]
[1760037510040,0.2,218.31,218.26,43.85647521]
[1760037510544,0.2,218.31,218.27,5.26148165]
[1760037511826,0.2,218.31,218.28,0.68]
[1760037513337,0.2,218.31,218.29,32.94]
[1760037513646,0.2,218.31,218.3,0.66]
[1760037513833,0.2,218.31,218.3,11.53647521]
[1760037514513,0.2,218.31,218.3,16.11732724]
[1760037515136,0.2,218.31,218.3,11.53647521]
[1760037515928,0.2,218.31,218.3,15.45732724]
[1760037516131,0.2,218.31,218.3,16.11732724]
[1760037516329,0.2,218.31,218.3,15.45732724]
[1760037516539,0.2,218.31,218.3,16.11732724]
[1760037517728,0.2,218.31,218.3,10.87647521]
[1760037517924,0.2,218.31,218.26,10.87647521]
[1760037518120,0.72,218.31,218.27,32.3]
[1760037518525,0.52,218.3,218.27,32.3]
[1760037519063,0.52,218.29,218.21,10.87647521]
[1760037519264,0.52,218.28,218.22,32.3]
[1760037519427,4.78078279,218.31,218.22,32.3]
[1760037519428,0.52,218.3,218.22,32.3]
[1760037519627,4.78078279,218.31,218.24,10.87647521]
[1760037519853,4.78078279,218.31,218.23,0.66]
[1760037519854,4.78078279,218.31,218.25,32.96]
[1760037520160,0.52,218.3,218.22,10.87647521]
[1760037520347,5.1008625,218.3,218.23,5.24227141]
[1760037520852,0.52,218.29,218.22,32.32]
[1760037521650,16.03299259,218.3,218.22,36.90247786]
[1760037521836,16.03299259,218.3,218.23,0.66]
[1760037522351,4.58127176,218.28,218.2,16.11935835]
[1760037522551,4.58127176,218.28,218.21,32.98]
[1760037522745,4.58127176,218.28,218.22,0.66]
[1760037523855,0.2,218.31,218.23,10.87647521]
[1760037524062,0.2,218.31,218.25,10.87647521]
[1760037524234,4.78065339,218.31,218.25,10.87647521]
[1760037524434,4.78065339,218.31,218.26,0.66]
[1760037524639,4.78065339,218.31,218.27,0.66]
[1760037524840,0.2,218.31,218.25,10.87647521]
[1760037525046,0.2,218.31,218.28,0.66]
[1760037525450,0.2,218.31,218.29,0.67]
[1760037525658,0.2,218.31,218.25,10.87647521]
[1760037525859,0.2,218.31,218.26,5.25169156]
[1760037526144,4.78072221,218.31,218.26,0.67]
[1760037526742,4.78072221,218.31,218.27,0.67]
[1760037527160,4.78072221,218.31,218.25,10.87647521]
[1760037527336,4.78072221,218.31,218.25,11.54647521]
[1760037527659,4.78072221,218.31,218.26,0.67]
[1760037527853,4.78072221,218.31,218.27,0.67]
[1760037528834,4.78072221,218.31,218.25,10.87647521]
[1760037529039,0.2,218.31,218.26,0.67]
[1760037529262,0.2,218.31,218.27,0.67]
[1760037529463,0.2,218.31,218.28,0.67]
[1760037529764,0.2,218.31,218.29,0.67]
[1760037529938,0.2,218.31,218.3,0.67]
[1760037531260,0.2,218.31,218.28,32.32]
[1760037531634,0.2,218.31,218.29,0.67]
[1760037532354,0.2,218.31,218.3,0.67]
[1760037533059,0.2,218.31,218.3,16.12732724]
[1760037533544,0.2,218.31,218.3,15.45732724]
[1760037533744,0.2,218.31,218.3,16.12732724]
[1760037533945,0.2,218.31,218.3,48.44732724]
[1760037534854,0.2,218.31,218.3,16.12732724]
[1760037535165,0.2,218.31,218.3,48.42732724]
[1760037535477,0.2,218.31,218.3,32.3]
[1760037535876,0.2,218.31,218.3,32.97]
[1760037537180,0.2,218.31,218.26,4.58152138]
[1760037537350,0.2,218.31,218.29,32.3]
[1760037538050,0.2,218.31,218.29,32.97]
[1760037538379,0.2,218.31,218.28,32.3]
[1760037538680,5.30067074,218.31,218.26,43.17647521]
[1760037538878,5.30067074,218.31,218.26,32.3]
[1760037539080,0.52,218.3,218.24,32.3]
[1760037539248,0.52,218.3,218.24,32.97]
[1760037539448,22.39017474,218.31,218.25,4.58190148]
[1760037539874,22.91017474,218.31,218.24,37.55207116]
[1760037540774,22.91017474,218.31,218.24,32.97]
[1760037540985,22.91017474,218.31,218.24,37.55208058]
[1760037540986,3.08235292,218.3,218.24,37.55208058]
[1760037541792,22.91017474,218.31,218.24,37.55208058]
[1760037542692,7.66313984,218.3,218.24,37.55208058]
[1760037543060,4.58101008,218.3,218.24,37.55208058]
[1760037543565,18.329504,218.31,218.24,37.55208058]
[1760037544292,17.809504,218.31,218.25,0.69]
[1760037544465,22.39014878,218.31,218.25,0.69]
[1760037545384,22.39014878,218.31,218.25,5.27185416]
[1760037545679,22.39014878,218.31,218.24,32.3]
[1760037545886,22.39014878,218.31,218.24,32.99]
[1760037546068,33.84175429,218.31,218.24,80.99]
[1760037546259,3.60155986,218.3,218.24,80.3]
[1760037546459,0.52,218.29,218.24,80.3]
[1760037546660,0.52,218.28,218.24,80.3]
[1760037546891,0.52,218.27,218.24,80.3]
[1760037547089,0.52,218.26,218.24,80.3]
[1760037547283,0.52,218.26,218.2,4.58293293]
[1760037547892,5.10188694,218.26,218.2,4.58293293]
[1760037548467,5.10188694,218.26,218.2,5.27293293]
[1760037548670,3.08107669,218.28,218.22,10.87647521]
[1760037548887,22.39016029,218.31,218.23,0.69]
[1760037550068,22.39016029,218.31,218.24,4.58211143]
[1760037550268,22.39016029,218.31,218.25,0.69]
[1760037550570,17.809504,218.31,218.25,0.69]
[1760037551387,22.39015249,218.31,218.25,0.69]
[1760037552201,22.39015249,218.31,218.24,4.58211143]
[1760037552503,0.52,218.3,218.24,91.86647521]
[1760037552881,0.52,218.3,218.24,80.99]
[1760037553595,0.52,218.29,218.21,0.69]
[1760037553768,0.52,218.28,218.21,0.69]
[1760037554297,3.08100661,218.3,218.21,5.27273098]
[1760037554589,0.52,218.29,218.2,32.28]
[1760037554782,0.52,218.28,218.2,32.97]
[1760037555173,3.08100661,218.29,218.2,32.97]
[1760037555376,0.52,218.27,218.2,32.97]
[1760037555674,4.58169156,218.26,218.2,32.97]